fUSD/lending_fUSD_20241104
["ID","MTS","AMOUNT","RATE_DAILY","PERIOD"]
[341266997,1730735491949,-530.41,0.00037534,2]
[341266998,1730735491959,-500.0,0.00037534,2]
[341266999,1730735491969,-1127.04,0.00037534,2]
[341267000,1730735491979,-654.01,0.00037534,2]
[341267001,1730735491990,-3340.62,0.00037534,2]
[341267002,1730735492000,-500.0,0.00037534,2]
[341267003,1730735492009,-500.0,0.00037534,2]
[341267004,1730735492018,-500.0,0.00037534,2]
[341267005,1730735492028,-735.14,0.00037534,2]
[341267006,1730735492039,-10593.24,0.00037534,2]
[341267007,1730735492048,-500.0,0.00037534,2]
[341267008,1730735492058,-528.03,0.00037534,2]
[341267009,1730735492067,-1246.62,0.00037534,2]
[341267010,1730735492076,-3005.2,0.00037534,2]
[341267011,1730735492087,-500.0,0.00037534,2]
[341267012,1730735492098,-558.26,0.00037534,2]
[341267013,1730735492225,-656.86,0.00037534,2]
[341267014,1730735492235,-500.0,0.00037534,2]
[341267015,1730735492245,-625.73,0.00037534,2]
[341267016,1730735492255,-1000.0,0.00037534,2]
[341267017,1730735492264,-2616.04,0.00037534,2]
[341267018,1730735492274,-3461.86,0.00037534,2]
[341267019,1730735492284,-166.06,0.00037534,2]
[341267020,1730735492294,-500.0,0.00037534,2]
[341267021,1730735492304,-556.62084644,0.00037534,2]
[341267022,1730735492314,-1222.7,0.00037534,2]
[341267023,1730735492323,-500.0,0.00037534,2]
[341267024,1730735492333,-514.78,0.00037534,2]
[341267025,1730735492343,-500.0,0.00037534,2]
[341267026,1730735492353,-500.0,0.00037534,2]
[341267027,1730735492362,-500.0,0.00037534,2]
[341267028,1730735492372,-500.0,0.00037534,2]
[341267029,1730735492382,-954.74,0.00037534,2]
[341267030,1730735492393,-692.32,0.00037534,2]
[341267031,1730735492404,-596.33,0.00037534,2]
[341267032,1730735492416,-500.0,0.00037534,2]
[341267033,1730735492425,-1916.99,0.00037534,2]
[341267034,1730735492434,-1080.0,0.00037547,4]
[341267035,1730735492443,-1260.0,0.00037601,4]
[341267036,1730735492452,-707.25398063,0.0003762,15]
[341267037,1730735492463,-1440.0,0.00037656,4]
[341267038,1730735492472,-1255.75,0.00037671,120]
[341267039,1730735492482,-2599.0,0.000377,2]
[341267040,1730735492493,-1620.0,0.00037711,4]
[341267041,1730735492503,-300.0,0.00037766,4]
[341267042,1730735492512,-410.82792742,0.00037807,2]
[341267043,1730735492521,-500.0,0.00037807,2]
[341267044,1730735492529,-519.87,0.00037807,2]
[341267045,1730735492539,-500.0,0.00037807,2]
[341267046,1730735492548,-500.0,0.00037807,2]
[341267047,1730735492558,-500.0,0.00037807,2]
[341267048,1730735492568,-500.0,0.00037807,2]
[341267049,1730735492578,-500.0,0.00037807,2]
[341267050,1730735492589,-500.0,0.00037807,2]
[341267051,1730735492599,-500.0,0.00037807,2]
[341267052,1730735492612,-500.0,0.00037807,2]
[341267053,1730735492621,-500.0,0.00037807,2]
[341267054,1730735492631,-500.0,0.00037807,2]
[341267055,1730735492643,-500.0,0.00037807,2]
[341267056,1730735492652,-431.49418583,0.00037807,2]
[341267057,1730735492662,-520.94,0.00037807,2]
[341267058,1730735492673,-500.0,0.00037807,2]
[341267059,1730735492683,-500.0,0.00037807,2]
[341267060,1730735492693,-575.99,0.00037807,2]
[341267061,1730735492703,-500.0,0.00037807,2]
[341267062,1730735492712,-500.0,0.00037807,2]
[341267063,1730735492723,-500.0,0.00037807,2]
[341267064,1730735492733,-500.0,0.00037807,2]
[341267065,1730735492745,-500.0,0.00037807,2]
[341267066,1730735492754,-549.42,0.00037807,2]
[341267067,1730735492764,-255.746573,0.00037807,7]
[341267068,1730735492774,-500.0,0.00037808,2]
[341267069,1730735492784,-500.0,0.00037808,2]
[341267070,1730735492796,-622.68451579,0.00037808,2]
[341267071,1730735492806,-500.0,0.00037808,2]
[341267072,1730735492817,-678.77,0.00037808,2]
[341267073,1730735492827,-500.0,0.00037808,2]
[341267074,1730735492837,-500.0,0.00037808,2]
[341267075,1730735492846,-500.0,0.00037808,2]
[341267076,1730735492856,-500.0,0.00037808,2]
[341267077,1730735492865,-500.0,0.00037808,2]
[341267078,1730735492874,-500.0,0.00037808,2]
[341267079,1730735492884,-595.97,0.00037808,2]
[341267080,1730735492894,-500.0,0.00037808,2]
[341267081,1730735492903,-500.0,0.00037808,2]
[341267082,1730735492913,-562.46,0.00037808,2]
[341267083,1730735492923,-845.59,0.00037808,2]
[341267084,1730735492933,-500.0,0.00037808,2]
[341267085,1730735492943,-500.0,0.00037808,2]
[341267086,1730735492954,-500.0,0.00037808,2]
[341267087,1730735492963,-610.78056149,0.00037808,2]
[341267088,1730735492973,-750.1,0.00037808,2]
[341267089,1730735492983,-500.0,0.00037808,2]
[341267090,1730735492996,-500.0,0.00037808,2]
[341267091,1730735493006,-500.0,0.00037808,2]
[341267092,1730735493015,-500.0,0.00037808,2]
[341267093,1730735493025,-567.62,0.00037808,2]
[341267094,1730735493034,-500.0,0.00037808,2]
[341267095,1730735493044,-1971.19,0.00037808,2]
[341267096,1730735493055,-1610.78,0.00037808,2]
[341267097,1730735493065,-500.0,0.00037808,2]
[341267098,1730735493075,-1096.83,0.00037808,2]
[341267099,1730735493085,-500.0,0.00037808,2]
[341267100,1730735493095,-500.0,0.00037808,2]
[341267101,1730735493104,-454.8862768,0.00037808,2]
[341267102,1730735493114,-516.0,0.00037808,2]
[341267103,1730735493123,-527.03,0.00037808,2]
[341267104,1730735493133,-447.73154926,0.00037808,2]
[341267105,1730735493143,-680.27,0.00037808,2]
[341267106,1730735493153,-511.55,0.00037808,2]
[341267107,1730735493164,-500.0,0.00037808,2]
[341267108,1730735493174,-568.1,0.00037808,2]
[341267109,1730735493183,-630.31,0.00037808,2]
[341267110,1730735493193,-879.99,0.00037808,2]
[341267111,1730735493204,-500.0,0.00037808,2]
[341267112,1730735493214,-1000.0,0.00037808,30]
[341267113,1730735493223,-860.12,0.00037808,2]
[341267114,1730735493233,-565.62621951,0.00037808,2]
[341267115,1730735493245,-412.51349651,0.00037808,2]
[341267116,1730735493254,-678.21,0.00037808,2]
[341267117,1730735493264,-777.65,0.00037808,2]
[341267118,1730735493274,-500.0,0.00037808,2]
[341267119,1730735493283,-500.0,0.00037808,2]
[341267120,1730735493292,-512.81,0.00037808,2]
[341267121,1730735493302,-1976.03,0.00037808,2]
[341267122,1730735493311,-977.14,0.00037808,2]
[341267123,1730735493321,-500.0,0.00037808,2]
[341267124,1730735493331,-500.0,0.00037808,2]
[341267125,1730735493340,-228.99757273,0.00037808,2]
[341267126,1730735493350,-622.99,0.00037808,2]
[341267127,1730735493359,-500.0,0.00037808,2]
[341267128,1730735493369,-712.32,0.00037808,2]
[341267129,1730735493378,-1115.68,0.00037808,2]
[341267130,1730735493388,-332.61175072,0.00037808,2]
[341267131,1730735493400,-500.0,0.00037808,2]
[341267132,1730735493410,-500.0,0.00037808,2]
[341267133,1730735493420,-500.0,0.00037808,2]
[341267134,1730735493430,-808.98,0.00037808,2]
[341267135,1730735493440,-500.0,0.00037808,2]
[341267136,1730735493450,-1426.9,0.00037808,2]
[341267137,1730735493460,-1323.81,0.00037808,2]
[341267138,1730735493470,-538.33220579,0.00037808,2]
[341267139,1730735493482,-526.77301401,0.00037808,2]
[341267140,1730735493494,-666.03,0.00037808,2]
[341267141,1730735493503,-839.44,0.00037808,2]
[341267142,1730735493512,-500.0,0.00037808,2]
[341267143,1730735493522,-500.0,0.00037808,2]
[341267144,1730735493532,-500.0,0.00037808,2]
[341267145,1730735493542,-500.0,0.00037808,2]
[341267146,1730735493552,-500.0,0.00037808,2]
[341267147,1730735493562,-737.61,0.00037808,2]
[341267148,1730735493571,-519.33835701,0.00037808,2]
[341267149,1730735493581,-500.0,0.00037808,2]
[341267150,1730735493591,-500.0,0.00037808,2]
[341267151,1730735493601,-628.78,0.00037808,2]
[341267152,1730735493611,-753.23,0.00037808,2]
[341267153,1730735493620,-500.0,0.00037808,2]
[341267154,1730735493630,-500.0,0.00037808,2]
[341267155,1730735493640,-512.34,0.00037808,2]
[341267156,1730735493650,-690.94,0.00037808,2]
[341267157,1730735493660,-1122.64,0.00037808,2]
[341267158,1730735493670,-956.46,0.00037808,2]
[341267159,1730735493680,-500.0,0.00037808,2]
[341267160,1730735493690,-500.0,0.00037808,2]
[341267161,1730735493700,-199.24528532,0.00037808,2]
[341267162,1730735493710,-1420.89,0.00037808,2]
[341267163,1730735493721,-705.19,0.00037808,2]
[341267164,1730735493731,-500.0,0.00037808,2]
[341267165,1730735493741,-767.22,0.00037808,2]
[341267166,1730735493751,-237.00623341,0.00037808,2]
[341267167,1730735493761,-500.0,0.00037808,2]
[341267168,1730735493771,-869.5,0.00037808,2]
[341267169,1730735493780,-712.63,0.00037808,2]
[341267170,1730735493790,-937.08,0.00037808,2]
[341267171,1730735493800,-764.15,0.00037808,2]
[341267172,1730735493810,-1294.05,0.00037808,2]
[341267173,1730735493819,-510.62,0.00037808,2]
[341267174,1730735493829,-524.31,0.00037808,2]
[341267175,1730735493838,-500.0,0.00037808,2]
[341267176,1730735493849,-1118.2,0.00037808,2]
[341267177,1730735493858,-711.3,0.00037808,2]
[341267178,1730735493868,-500.0,0.00037808,2]
[341267179,1730735493878,-500.0,0.00037808,2]
[341267180,1730735493889,-1519.0,0.00037808,2]
[341267181,1730735493899,-500.0,0.00037808,2]
[341267182,1730735493908,-500.0,0.00037808,2]
[341267183,1730735493918,-500.0,0.00037808,2]
[341267184,1730735493928,-1126.44,0.00037808,2]
[341267185,1730735493938,-544.05,0.00037808,2]
[341267186,1730735493948,-500.0,0.00037808,2]
[341267187,1730735493958,-500.0,0.00037808,2]
[341267188,1730735493967,-500.0,0.00037808,2]
[341267189,1730735493976,-500.0,0.00037808,2]
[341267190,1730735493987,-1288.14,0.00037808,2]
[341267191,1730735493997,-543.83,0.00037808,2]
[341267192,1730735494007,-636.36,0.00037808,2]
[341267193,1730735494017,-1218.15,0.00037808,2]
[341267194,1730735494027,-500.0,0.00037808,2]
[341267195,1730735494037,-1259.81,0.00037808,2]
[341267196,1730735494048,-1651.88,0.00037808,2]
[341267197,1730735494057,-319.99,0.00037808,2]
[341267198,1730735494068,-500.0,0.00037808,2]
[341267199,1730735494078,-500.0,0.00037808,2]
[341267200,1730735494087,-310.97907662,0.00037808,2]
[341267201,1730735494097,-1360.92,0.00037808,2]
[341267202,1730735494107,-370.81765631,0.00037808,2]
[341267203,1730735494117,-912.89,0.00037808,2]
[341267204,1730735494126,-500.0,0.00037808,2]
[341267205,1730735494135,-500.0,0.00037808,2]
[341267206,1730735494145,-500.0,0.00037808,2]
[341267207,1730735494155,-719.39,0.00037808,2]
[341267208,1730735494164,-500.0,0.00037808,2]
[341267209,1730735494174,-704.43,0.00037808,2]
[341267210,1730735494184,-669.63,0.00037808,2]
[341267211,1730735494194,-500.0,0.00037808,2]
[341267212,1730735494203,-529.69,0.00037808,2]
[341267213,1730735494213,-500.0,0.00037808,2]
[341267214,1730735494223,-500.0,0.00037808,2]
[341267215,1730735494232,-500.0,0.00037808,2]
[341267216,1730735494242,-500.0,0.00037808,2]
[341267217,1730735494251,-1802.68,0.00037808,2]
[341267218,1730735494261,-500.0,0.00037808,2]
[341267219,1730735494271,-500.0,0.00037808,2]
[341267220,1730735494281,-500.0,0.00037808,2]
[341267221,1730735494290,-500.0,0.00037808,2]
[341267222,1730735494416,-500.0,0.00037808,2]
[341267223,1730735494429,-687.5,0.00037808,2]
[341267224,1730735494438,-1321.04,0.00037808,2]
[341267225,1730735494448,-909.72,0.00037808,2]
[341267226,1730735494457,-500.0,0.00037808,2]
[341267227,1730735494467,-500.0,0.00037808,2]
[341267228,1730735494476,-500.0,0.00037808,2]
[341267229,1730735494485,-879.57,0.00037808,2]
[341267230,1730735494496,-500.0,0.00037808,2]
[341267231,1730735494506,-571.76,0.00037808,2]
[341267232,1730735494516,-500.0,0.00037808,2]
[341267233,1730735494526,-500.0,0.00037808,2]
[341267234,1730735494535,-534.69,0.00037808,2]
[341267235,1730735494545,-500.0,0.00037808,2]
[341267236,1730735494556,-500.0,0.00037808,2]
[341267237,1730735494566,-939.96,0.00037808,2]
[341267238,1730735494575,-500.0,0.00037808,2]
[341267239,1730735494585,-980.66,0.00037808,2]
[341267240,1730735494595,-500.0,0.00037808,2]
[341267241,1730735494607,-500.0,0.00037808,2]
[341267242,1730735494616,-546.11,0.00037808,2]
[341267243,1730735494626,-500.0,0.00037808,2]
[341267244,1730735494636,-511.22,0.00037808,2]
[341267245,1730735494645,-500.0,0.00037808,2]
[341267246,1730735494655,-500.0,0.00037808,2]
[341267247,1730735494664,-505.5,0.00037808,2]
[341267248,1730735494678,-500.0,0.00037808,2]
[341267249,1730735494688,-500.0,0.00037808,2]
[341267250,1730735494698,-984.46,0.00037808,2]
[341267251,1730735494707,-614.73,0.00037808,2]
[341267252,1730735494717,-500.0,0.00037808,2]
[341267253,1730735494729,-602.48,0.00037808,2]
[341267254,1730735494740,-500.0,0.00037808,2]
[341267255,1730735494749,-988.32,0.00037808,2]
[341267256,1730735494760,-639.67582163,0.00037808,2]
[341267257,1730735494771,-500.0,0.00037808,2]
[341267258,1730735494780,-500.0,0.00037808,2]
[341267259,1730735494789,-631.52,0.00037808,2]
[341267260,1730735494799,-553.74,0.00037808,2]
[341267261,1730735494808,-988.27,0.00037808,2]
[341267262,1730735494819,-769.98,0.00037808,2]
[341267263,1730735494829,-500.0,0.00037808,2]
[341267264,1730735494839,-500.0,0.00037808,2]
[341267265,1730735494848,-500.0,0.00037808,2]
[341267266,1730735494858,-1956.97,0.00037808,2]
[341267267,1730735494868,-500.0,0.00037808,2]
[341267268,1730735494878,-500.0,0.00037808,2]
[341267269,1730735494889,-500.0,0.00037808,2]
[341267270,1730735494898,-250.0,0.00037808,2]
[341267271,1730735494908,-566.39,0.00037808,2]
[341267272,1730735494918,-1694.4,0.00037808,2]
[341267273,1730735494927,-500.0,0.00037808,2]
[341267274,1730735494937,-500.0,0.00037808,2]
[341267275,1730735494948,-500.0,0.00037808,2]
[341267276,1730735494958,-500.0,0.00037808,2]
[341267277,1730735494968,-515.3,0.00037808,2]
[341267278,1730735494978,-500.0,0.00037808,2]
[341267279,1730735494987,-500.0,0.00037808,2]
[341267280,1730735494996,-879.85,0.00037808,2]
[341267281,1730735495006,-652.97,0.00037808,2]
[341267282,1730735495015,-689.03,0.00037808,2]
[341267283,1730735495025,-500.0,0.00037808,2]
[341267284,1730735495034,-500.0,0.00037808,2]
[341267285,1730735495045,-500.0,0.00037808,2]
[341267286,1730735495054,-777.65,0.00037808,2]
[341267287,1730735495065,-500.0,0.00037808,2]
[341267288,1730735495075,-500.0,0.00037808,2]
[341267289,1730735495084,-500.0,0.00037808,2]
[341267290,1730735495094,-500.0,0.00037808,2]
[341267291,1730735495106,-609.2,0.00037808,2]
[341267292,1730735495116,-1141.77,0.00037808,2]
[341267293,1730735495125,-815.25,0.00037808,2]
[341267294,1730735495135,-1247.49,0.00037808,2]
[341267295,1730735495144,-500.0,0.00037808,2]
[341267296,1730735495155,-500.0,0.00037808,2]
[341267297,1730735495164,-611.47,0.00037808,2]
[341267298,1730735495176,-500.0,0.00037808,2]
[341267299,1730735495185,-877.23,0.00037808,2]
[341267300,1730735495196,-1538.63,0.00037808,2]
[341267301,1730735495207,-1051.45,0.00037808,2]
[341267302,1730735495217,-500.0,0.00037808,2]
[341267303,1730735495227,-500.0,0.00037808,2]
[341267304,1730735495237,-4150.77,0.00037808,2]
[341267305,1730735495247,-500.0,0.00037808,2]
[341267306,1730735495258,-745.46,0.00037808,2]
[341267307,1730735495268,-1876.8,0.00037808,2]
[341267308,1730735495278,-1151.0,0.00037808,2]
[341267309,1730735495288,-1770.42,0.00037808,2]
[341267310,1730735495297,-510.09,0.00037808,2]
[341267311,1730735495307,-554.53203887,0.00037808,2]
[341267312,1730735495316,-522.29,0.00037808,2]
[341267313,1730735495326,-958.22,0.00037808,2]
[341267314,1730735495335,-1127.16,0.00037808,2]
[341267315,1730735495344,-500.0,0.00037808,2]
[341267316,1730735495353,-865.69,0.00037808,2]
[341267317,1730735495362,-500.0,0.00037808,2]
[341267318,1730735495372,-500.0,0.00037808,2]
[341267319,1730735495381,-1128.13,0.00037808,2]
[341267320,1730735495391,-500.0,0.00037808,2]
[341267321,1730735495404,-1045.13,0.00037808,2]
[341267322,1730735495414,-531.53,0.00037808,2]
[341267323,1730735495423,-500.0,0.00037808,2]
[341267324,1730735495432,-2026.72,0.00037808,2]
[341267325,1730735495442,-1098.81,0.00037808,2]
[341267326,1730735495452,-250.0,0.00037808,2]
[341267327,1730735495461,-520.4,0.00037808,2]
[341267328,1730735495472,-500.0,0.00037808,2]
[341267329,1730735495481,-500.0,0.00037808,2]
[341267330,1730735495492,-519.04,0.00037808,2]
[341267331,1730735495501,-500.0,0.00037808,2]
[341267332,1730735495510,-500.0,0.00037808,2]
[341267333,1730735495520,-627.52,0.00037808,2]
[341267334,1730735495530,-587.36,0.00037808,2]
[341267335,1730735495539,-500.0,0.00037808,2]
[341267336,1730735495549,-500.0,0.00037808,2]
[341267337,1730735495558,-538.73917529,0.00037808,2]
[341267338,1730735495567,-2121.93,0.00037808,2]
[341267339,1730735495577,-500.0,0.00037808,2]
[341267340,1730735495588,-582.71,0.00037808,2]
[341267341,1730735495600,-500.0,0.00037808,2]
[341267342,1730735495610,-1427.63,0.00037808,2]
[341267343,1730735495619,-791.14,0.00037808,2]
[341267344,1730735495629,-1116.56,0.00037808,2]
[341267345,1730735495639,-546.25967195,0.00037808,2]
[341267346,1730735495648,-1093.28,0.00037808,2]
[341267347,1730735495658,-2018.13,0.00037808,2]
[341267348,1730735495668,-500.0,0.00037808,2]
[341267349,1730735495677,-500.0,0.00037808,2]
[341267350,1730735495686,-1687.58,0.00037808,2]
[341267351,1730735495695,-500.0,0.00037808,2]
[341267352,1730735495705,-1104.45,0.00037808,2]
[341267353,1730735495716,-566.13579312,0.00037808,2]
[341267354,1730735495726,-911.86,0.00037808,2]
[341267355,1730735495735,-500.0,0.00037808,2]
[341267356,1730735495745,-835.19,0.00037808,2]
[341267357,1730735495754,-500.0,0.00037808,2]
[341267358,1730735495764,-878.68,0.00037808,2]
[341267359,1730735495773,-1098.84,0.00037808,2]
[341267360,1730735495783,-500.0,0.00037808,2]
[341267361,1730735495794,-1310.74,0.00037808,2]
[341267362,1730735495804,-2183.79,0.00037808,2]
[341267363,1730735495815,-500.0,0.00037808,2]
[341267364,1730735495825,-820.36,0.00037808,2]
[341267365,1730735495836,-515.02,0.00037808,2]
[341267366,1730735495846,-500.0,0.00037808,2]
[341267367,1730735495856,-500.0,0.00037808,2]
[341267368,1730735495866,-500.0,0.00037808,2]
[341267369,1730735495876,-500.0,0.00037808,2]
[341267370,1730735495887,-630.11090027,0.00037808,2]
[341267371,1730735495896,-500.0,0.00037808,2]
[341267372,1730735495906,-500.0,0.00037808,2]
[341267373,1730735495916,-500.0,0.00037808,2]
[341267374,1730735495927,-593.87,0.00037808,2]
[341267375,1730735495936,-500.0,0.00037808,2]
[341267376,1730735495946,-1708.91,0.00037808,2]
[341267377,1730735495955,-544.98,0.00037808,2]
[341267378,1730735495965,-500.0,0.00037808,2]
[341267379,1730735495975,-660.53,0.00037808,2]
[341267380,1730735495984,-500.0,0.00037808,2]
[341267381,1730735495995,-564.44,0.00037808,2]
[341267382,1730735496004,-850.52,0.00037808,2]
[341267383,1730735496013,-752.59,0.00037808,2]
[341267384,1730735496023,-500.0,0.00037808,2]
[341267385,1730735496033,-324.43088005,0.00037808,2]
[341267386,1730735496044,-1296.67,0.00037808,2]
[341267387,1730735496054,-1584.46,0.00037808,2]
[341267388,1730735496063,-515.69554091,0.00037808,2]
[341267389,1730735496072,-1066.3,0.00037808,2]
[341267390,1730735496082,-500.0,0.00037808,2]
[341267391,1730735496091,-1582.17,0.00037808,2]
[341267392,1730735496100,-500.0,0.00037808,2]
[341267393,1730735496109,-500.0,0.00037808,2]
[341267394,1730735496119,-500.0,0.00037808,2]
[341267395,1730735496128,-500.0,0.00037808,2]
[341267396,1730735496137,-500.0,0.00037808,2]
[341267397,1730735496146,-1042.76,0.00037808,2]
[341267398,1730735496156,-1058.38,0.00037808,2]
[341267399,1730735496165,-454.67596652,0.00037808,2]
[341267400,1730735496175,-505.09,0.00037808,2]
[341267401,1730735496184,-200.0,0.00037808,2]
[341267402,1730735496193,-913.46,0.00037808,2]
[341267403,1730735496203,-2146.82,0.00037808,2]
[341267404,1730735496212,-766.26,0.00037808,2]
[341267405,1730735496221,-1191.45,0.00037808,2]
[341267406,1730735496231,-500.0,0.00037808,2]
[341267407,1730735496241,-500.0,0.00037808,2]
[341267408,1730735496250,-500.0,0.00037808,2]
[341267409,1730735496259,-500.0,0.00037808,2]
[341267410,1730735496268,-609.71,0.00037808,2]
[341267411,1730735496277,-938.94,0.00037808,2]
[341267412,1730735496288,-734.64,0.00037808,2]
[341267413,1730735496297,-500.0,0.00037808,2]
[341267414,1730735496307,-300.0,0.00037808,2]
[341267415,1730735496422,-530.41,0.00037808,2]
[341267416,1730735496432,-500.0,0.00037808,2]
[341267417,1730735496442,-1127.04,0.00037808,2]
[341267418,1730735496452,-654.01,0.00037808,2]
[341267419,1730735496461,-3340.62,0.00037808,2]
[341267420,1730735496470,-198.65464108,0.00037808,2]
[341267421,1730735496479,-500.0,0.00037808,2]
[341267422,1730735496489,-500.0,0.00037808,2]
[341267423,1730735496498,-735.14,0.00037808,2]
[341267424,1730735496507,-10593.24,0.00037808,2]
[341267425,1730735496516,-500.0,0.00037808,2]
[341267426,1730735496524,-528.03,0.00037808,2]
[341267427,1730735496534,-1246.62,0.00037808,2]
[341267428,1730735496543,-3005.2,0.00037808,2]
[341267429,1730735496553,-500.0,0.00037808,2]
[341267430,1730735496562,-558.26,0.00037808,2]
[341267431,1730735496571,-656.86,0.00037808,2]
[341267432,1730735496581,-500.0,0.00037808,2]
[341267433,1730735496590,-625.73,0.00037808,2]
[341267434,1730735496600,-1000.0,0.00037808,2]
[341267435,1730735496609,-2616.04,0.00037808,2]
[341267436,1730735496618,-3461.86,0.00037808,2]
[341267437,1730735496627,-500.0,0.00037808,2]
[341267438,1730735496636,-1222.7,0.00037808,2]
[341267439,1730735496650,-514.78,0.00037808,2]
[341267440,1730735496671,-500.0,0.00037808,2]
[341267441,1730735496690,-500.0,0.00037808,2]
[341267442,1730735496713,-500.0,0.00037808,2]
[341267443,1730735496734,-615.17108454,0.00037808,2]
[341267444,1730735496755,-954.74,0.00037808,2]
[341267445,1730735496771,-692.32,0.00037808,2]
[341267446,1730735496788,-596.33,0.00037808,2]
[341267447,1730735496807,-500.0,0.00037808,2]
[341267448,1730735496828,-1916.99,0.00037808,2]
[341267449,1730735496840,-6263.83334005,0.000379,2]
[341267450,1730735496850,-153.22,0.00037914,120]
[341267451,1730735496859,-1000.0,0.00038,10]
[341267452,1730735496869,-152.94,0.00038,31]
[341267453,1730735496879,-152.94,0.00038,31]
[341267454,1730735496888,-519.87,0.00038081,2]
[341267455,1730735496897,-500.0,0.00038081,2]
[341267456,1730735496908,-259.5597508,0.00038081,2]
[341267457,1730735496917,-500.0,0.00038081,2]
[341267458,1730735496926,-500.0,0.00038081,2]
[341267459,1730735496936,-500.0,0.00038081,2]
[341267460,1730735496945,-500.0,0.00038081,2]
[341267461,1730735496956,-500.0,0.00038081,2]
[341267462,1730735496967,-500.0,0.00038081,2]
[341267463,1730735496978,-500.0,0.00038081,2]
[341267464,1730735496992,-333.29357279,0.00038081,2]
[341267465,1730735497001,-500.0,0.00038081,2]
[341267466,1730735497011,-500.0,0.00038081,2]
[341267467,1730735497020,-520.94,0.00038081,2]
[341267468,1730735497030,-500.0,0.00038081,2]
[341267469,1730735497040,-500.0,0.00038081,2]
[341267470,1730735497050,-575.99,0.00038081,2]
[341267471,1730735497060,-500.0,0.00038081,2]
[341267472,1730735497070,-500.0,0.00038081,2]
[341267473,1730735497080,-500.0,0.00038081,2]
[341267474,1730735497090,-500.0,0.00038081,2]
[341267475,1730735497100,-500.0,0.00038081,2]
[341267476,1730735497111,-549.42,0.00038081,2]
[341267477,1730735497122,-159.65592991,0.00038081,2]
[341267478,1730735497132,-500.0,0.00038082,2]
[341267479,1730735497142,-500.0,0.00038082,2]
[341267480,1730735497154,-678.77,0.00038082,2]
[341267481,1730735497165,-500.0,0.00038082,2]
[341267482,1730735497174,-500.0,0.00038082,2]
[341267483,1730735497183,-500.0,0.00038082,2]
[341267484,1730735497193,-168.88789396,0.00038082,2]
[341267485,1730735497202,-500.0,0.00038082,2]
[341267486,1730735497213,-500.0,0.00038082,2]
[341267487,1730735497226,-595.97,0.00038082,2]
[341267488,1730735497236,-500.0,0.00038082,2]
[341267489,1730735497247,-504.87226422,0.00038082,2]
[341267490,1730735497257,-562.46,0.00038082,2]
[341267491,1730735497269,-845.59,0.00038082,2]
[341267492,1730735497279,-500.0,0.00038082,2]
[341267493,1730735497289,-500.0,0.00038082,2]
[341267494,1730735497298,-500.0,0.00038082,2]
[341267495,1730735497307,-750.1,0.00038082,2]
[341267496,1730735497316,-500.0,0.00038082,2]